bitfinex/quotes_BTCUSD_20240727
["timestamp","ask_amount","ask_price","bid_price","bid_amount"]
[1722070406337,0.146846,68099.0,68096.0,0.00142569]
[1722070406528,0.21261437,68099.0,68096.0,0.00142569]
[1722070407268,0.146846,68099.0,68096.0,0.00142569]
[1722070407473,0.147846,68099.0,68096.0,0.00142569]
[1722070407878,0.001,68099.0,68096.0,0.14827669]
[1722070408288,0.28125624,68100.0,68096.0,0.14827669]
[1722070408888,0.21548787,68100.0,68096.0,0.14827669]
[1722070409093,0.146845,68099.0,68096.0,0.00142569]
[1722070409496,0.146845,68099.0,68095.0,0.146853]
[1722070409697,0.16989342,68099.0,68096.0,0.00066577]
[1722070409901,0.17089342,68099.0,68096.0,0.00066577]
[1722070410077,0.17089442,68099.0,68096.0,0.00066577]
[1722070410276,0.17089442,68099.0,68094.0,0.146854]
[1722070410478,0.02304842,68099.0,68095.0,0.00142569]
[1722070410681,0.146855,68095.0,68086.0,0.17125]
[1722070410880,0.229056,68094.0,68090.0,0.146863]
[1722070411081,0.229056,68094.0,68088.0,0.146868]
[1722070411082,0.06,68093.0,68088.0,0.146868]
[1722070411281,0.06,68093.0,68089.0,0.146865]
[1722070411282,0.206858,68093.0,68089.0,0.146865]
[1722070411503,0.06,68093.0,68091.0,0.146862]
[1722070411914,0.08304935,68093.0,68091.0,0.146862]
[1722070412156,0.08304935,68093.0,68090.0,0.146864]
[1722070413177,0.08304935,68093.0,68091.0,0.003]
[1722070413307,0.08304935,68093.0,68090.0,0.146863]
[1722070413704,0.08304935,68093.0,68090.0,0.151863]
[1722070414567,0.08304935,68093.0,68090.0,0.005]
[1722070414711,0.22990735,68093.0,68090.0,0.005]
[1722070416068,0.440586,68091.0,68090.0,0.005]
[1722070417311,0.440586,68091.0,68090.0,0.002]
[1722070417512,0.146865,68090.0,68085.0,0.146874]
[1722070417739,0.293724,68091.0,68085.0,0.146874]
[1722070417740,0.146866,68089.0,68085.0,0.146874]
[1722070418359,0.146866,68089.0,68084.0,0.146877]
[1722070419023,0.146864,68090.0,68085.0,0.146874]
[1722070419429,0.146867,68089.0,68085.0,0.003]
[1722070419834,0.146867,68089.0,68085.0,0.004]
[1722070420180,0.0822,68088.0,68085.0,0.001]
[1722070420352,0.0822,68088.0,68084.0,0.146877]
[1722070420594,0.0822,68088.0,68085.0,0.004]
[1722070420802,0.06,68087.0,68085.0,0.004]
[1722070421012,0.146873,68086.0,68085.0,0.004]
[1722070421221,0.20687,68087.0,68085.0,0.002]
[1722070421392,0.146873,68086.0,68085.0,0.005]
[1722070421723,0.206871,68087.0,68085.0,0.005]
[1722070421848,0.206871,68087.0,68085.0,0.003]
[1722070422242,0.206871,68087.0,68085.0,0.006]
[1722070422439,0.206871,68087.0,68085.0,0.003]
[1722070422641,0.206871,68087.0,68083.0,0.146879]
[1722070422851,0.22907,68088.0,68085.0,0.007]
[1722070423050,0.14687,68088.0,68085.0,0.005]
[1722070423455,0.146867,68089.0,68085.0,0.006]
[1722070423790,0.146866,68089.0,68084.0,0.146876]
[1722070423967,0.289064,68090.0,68086.0,0.146872]
[1722070424164,0.289064,68090.0,68085.0,0.231573]
[1722070424373,0.146866,68089.0,68085.0,0.231573]
[1722070424587,0.146866,68089.0,68085.0,0.233573]
[1722070424754,0.1422,68090.0,68085.0,0.380448]
[1722070424952,0.0230502,68089.0,68086.0,0.146872]
[1722070425153,0.1699172,68089.0,68085.0,0.0917]
[1722070425391,0.1699172,68089.0,68085.0,0.233574]
[1722070425769,0.1699172,68089.0,68085.0,0.236574]
[1722070426213,0.146867,68089.0,68085.0,0.234574]
[1722070426385,0.146867,68089.0,68085.0,0.235574]
[1722070426900,0.146867,68089.0,68085.0,0.234574]
[1722070427265,0.146867,68089.0,68085.0,0.236574]
[1722070427875,0.1422,68090.0,68085.0,0.005]
[1722070428193,0.440619,68086.0,68085.0,0.005]
[1722070428395,0.146873,68086.0,68085.0,0.005]
[1722070428894,0.146872,68087.0,68085.0,0.005]
[1722070429258,0.146872,68087.0,68085.0,0.002]
[1722070429777,0.16992256,68087.0,68085.0,0.002]
[1722070429982,0.16992256,68087.0,68084.0,0.146877]
[1722070430394,0.16992256,68087.0,68085.0,0.003]
[1722070430770,0.16992256,68087.0,68085.0,0.002]
[1722070430974,0.16992256,68087.0,68086.0,0.146873]
[1722070430975,0.02305056,68087.0,68086.0,0.146873]
[1722070431300,0.02305056,68087.0,68086.0,0.228573]
[1722070431702,0.02305056,68087.0,68086.0,0.522319]
[1722070432004,0.02305056,68087.0,68086.0,0.228573]
[1722070432637,0.02305056,68087.0,68086.0,0.234573]
[1722070432909,0.02305056,68087.0,68086.0,0.528319]
[1722070433117,0.02305056,68087.0,68086.0,0.822065]
[1722070433759,0.02305056,68087.0,68086.0,0.826065]
[1722070434217,0.02388232,68093.0,68090.0,0.146863]
[1722070434569,0.02388232,68093.0,68091.0,0.14799348]
[1722070434767,0.02388232,68093.0,68092.0,0.14686]
[1722070435472,0.02388232,68093.0,68092.0,0.147541]
[1722070435683,0.02488232,68093.0,68092.0,0.14686]
[1722070435879,0.02388232,68093.0,68092.0,0.14686]
[1722070436325,0.02488232,68093.0,68092.0,0.14686]
[1722070436867,0.04793206,68093.0,68092.0,0.44058]
[1722070437113,0.04793206,68093.0,68092.0,0.58588]
[1722070437313,0.04993206,68093.0,68092.0,0.29216]
[1722070437719,0.04793206,68093.0,68092.0,0.29354732]
[1722070437927,0.04793206,68093.0,68092.0,0.58726732]
[1722070438125,0.04993206,68093.0,68092.0,0.44196732]
[1722070438378,0.02688232,68093.0,68092.0,0.14686]
[1722070440378,0.02688232,68093.0,68092.0,0.44058]
[1722070440810,0.02688232,68093.0,68092.0,0.14686]
[1722070440999,0.09268998,68093.0,68092.0,0.14686]
[1722070441450,0.02688232,68093.0,68092.0,0.14686]
[1722070441869,0.02688232,68093.0,68091.0,0.00116556]
[1722070441870,0.09268998,68093.0,68091.0,0.00116556]
[1722070442097,0.1413,68092.0,68086.0,0.293743]
[1722070442268,0.1413,68092.0,68086.0,0.293744]
[1722070442269,0.35396866,68092.0,68086.0,0.293744]
[1722070442563,0.2071067,68092.0,68089.0,0.146864]
[1722070442923,0.02305023,68091.0,68089.0,0.146864]
[1722070444966,0.02305023,68091.0,68086.0,0.293744]
[1722070444967,0.02305023,68091.0,68083.0,0.0817]
[1722070445170,0.02305023,68091.0,68088.0,0.146868]
[1722070445711,0.02305023,68091.0,68089.0,0.001]
[1722070445923,0.02305023,68091.0,68088.0,0.146868]
[1722070446058,0.35396774,68092.0,68089.0,0.146866]
[1722070446681,0.35396774,68092.0,68088.0,0.146867]
[1722070447026,0.35396999,68092.0,68088.0,0.146867]
[1722070448514,0.06580999,68092.0,68091.0,0.146862]
[1722070448909,0.06680999,68092.0,68091.0,0.146862]
[1722070449208,0.08985979,68092.0,68091.0,0.146862]
[1722070449507,0.08885979,68092.0,68090.0,0.146863]
[1722070450008,0.08985979,68092.0,68091.0,0.146862]
[1722070450467,0.13261814,68092.0,68091.0,0.146862]
[1722070450893,0.13261814,68092.0,68090.0,0.14828869]
[1722070451095,0.13261814,68092.0,68091.0,0.146862]
[1722070451293,0.13261814,68092.0,68091.0,0.14828769]
[1722070451294,0.13161814,68092.0,68091.0,0.14828769]
[1722070451493,0.13261814,68092.0,68091.0,0.14828769]
[1722070452108,0.13161814,68092.0,68091.0,0.14828769]
[1722070452303,0.13261814,68092.0,68091.0,0.14828769]
[1722070452548,0.06680907,68092.0,68091.0,0.14828769]
[1722070453930,0.08985854,68092.0,68091.0,0.146862]
[1722070454271,0.08985854,68092.0,68091.0,0.14828769]
[1722070454694,0.06680907,68092.0,68091.0,0.14828769]
[1722070454928,0.06680907,68092.0,68091.0,0.146862]
[1722070456733,0.06680907,68092.0,68090.0,0.14828869]
[1722070456931,0.06582837,68091.0,68090.0,0.14828869]
[1722070457092,0.06680907,68092.0,68090.0,0.14828869]
[1722070457294,0.06582837,68091.0,68089.0,0.146866]
[1722070457498,0.06582837,68091.0,68090.0,0.00142569]
[1722070457902,0.06582837,68091.0,68089.0,0.00142569]
[1722070458540,0.06582837,68091.0,68090.0,0.146864]
[1722070460245,0.06582837,68091.0,68088.0,0.00234969]
[1722070460447,0.061,68089.0,68088.0,0.000924]
[1722070460680,0.501599,68089.0,68088.0,0.000924]
[1722070461054,0.56743275,68089.0,68088.0,0.000924]
[1722070461422,0.29675022,68089.0,68088.0,0.000924]
[1722070462036,0.12683375,68089.0,68088.0,0.003924]
[1722070462257,0.000506,68085.0,68084.0,0.146877]
[1722070463338,0.000506,68085.0,68084.0,0.14756545]
[1722070463542,0.000506,68085.0,68084.0,0.146877]
[1722070463743,0.000506,68085.0,68084.0,0.14789636]
[1722070464002,0.000506,68085.0,68082.0,0.02945]
[1722070464156,0.000506,68085.0,68083.0,0.146877]
[1722070464355,0.000506,68085.0,68084.0,0.14764273]
[1722070464558,0.000506,68085.0,68084.0,0.006]
[1722070464759,0.000506,68085.0,68084.0,0.152877]
[1722070464958,0.000506,68085.0,68084.0,0.146877]
[1722070465411,0.000506,68085.0,68084.0,0.154877]
[1722070466188,0.000506,68085.0,68084.0,0.160877]
[1722070467214,0.000506,68085.0,68084.0,0.014]
[1722070467411,0.142606,68085.0,68084.0,0.014]
[1722070467613,0.583231,68085.0,68084.0,0.014]
[1722070467812,0.582725,68085.0,68084.0,0.014]
[1722070468013,0.288975,68085.0,68084.0,0.014]
[1722070468509,0.582725,68085.0,68084.0,0.014]
[1722070468679,0.288975,68085.0,68084.0,0.014]
[1722070471362,0.582725,68085.0,68084.0,0.014]
[1722070471723,0.1421,68085.0,68084.0,0.014]
[1722070471950,0.288975,68085.0,68084.0,0.014]
[1722070473184,0.288975,68085.0,68084.0,0.006]
[1722070473308,0.582725,68085.0,68084.0,0.006]
[1722070473513,0.582725,68085.0,68084.0,0.01]
[1722070473962,0.582725,68085.0,68084.0,0.004]
[1722070474114,0.582725,68085.0,68084.0,0.007]
[1722070474566,0.288975,68085.0,68084.0,0.007]
[1722070474762,0.0782,68085.0,68084.0,0.007]
[1722070475081,0.146875,68085.0,68084.0,0.007]
[1722070478918,0.146875,68085.0,68081.0,0.146883]
[1722070479582,0.146875,68085.0,68082.0,0.146881]
[1722070479794,0.371943,68087.0,68083.0,0.146879]
[1722070479795,0.21268419,68086.0,68083.0,0.146879]
[1722070479944,0.21268419,68086.0,68082.0,0.146881]
[1722070480156,0.146875,68085.0,68082.0,0.146881]
[1722070480826,0.146875,68085.0,68082.0,0.151881]
[1722070481319,0.146875,68085.0,68084.0,0.000924]
[1722070481526,0.43775051,68087.0,68084.0,0.141924]
[1722070481527,0.06580551,68087.0,68084.0,0.141924]
[1722070481734,0.00084,68085.0,68084.0,0.288801]
[1722070481944,0.00084,68085.0,68084.0,0.961009]
[1722070482856,0.00084,68085.0,68084.0,0.963009]
[1722070483068,0.00084,68085.0,68084.0,0.961009]
[1722070483512,0.02389016,68085.0,68084.0,0.965009]
[1722070483832,0.02389016,68085.0,68084.0,0.671255]
[1722070484056,0.02389016,68085.0,68084.0,0.821709]
[1722070484675,0.02389016,68085.0,68084.0,0.742309]
[1722070487883,0.02389016,68085.0,68084.0,0.448555]
[1722070488281,0.00084,68085.0,68084.0,0.448555]
[1722070489373,0.00084,68085.0,68084.0,0.007924]
[1722070489491,0.147715,68085.0,68084.0,0.007924]
[1722070489932,0.516665,68085.0,68084.0,0.007924]
[1722070490137,0.284515,68085.0,68084.0,0.007924]
[1722070490444,0.284515,68085.0,68084.0,0.004924]
[1722070490645,0.147715,68085.0,68084.0,0.004924]
[1722070490846,0.147715,68085.0,68084.0,0.000924]
[1722070490995,0.147715,68085.0,68084.0,0.001924]
[1722070491403,0.1707655,68085.0,68084.0,0.001924]
[1722070492015,0.1707655,68085.0,68082.0,0.13757724]
[1722070492628,0.1707655,68085.0,68082.0,0.28445824]
[1722070492927,0.00084,68085.0,68083.0,0.146878]
[1722070493127,0.00084,68085.0,68084.0,0.00109942]
[1722070493527,0.00084,68085.0,68082.0,0.28545824]
[1722070494100,0.00084,68085.0,68082.0,0.28445824]
[1722070494235,0.00084,68085.0,68084.0,0.001]
[1722070494436,0.00084,68085.0,68082.0,0.28445824]
[1722070494844,0.00084,68085.0,68082.0,0.28545824]
[1722070495048,0.00084,68085.0,68083.0,0.146878]
[1722070496485,0.00084,68085.0,68084.0,0.147877]
[1722070496826,0.00084,68085.0,68084.0,0.146877]
[1722070497176,0.00084,68085.0,68083.0,0.147878]
[1722070497382,0.00084,68085.0,68084.0,0.440631]
[1722070497584,0.00084,68085.0,68084.0,0.734385]
[1722070497585,0.02389051,68085.0,68084.0,0.734385]
[1722070497811,0.00084,68085.0,68084.0,0.735385]
[1722070497950,0.00084,68085.0,68084.0,0.734385]
[1722070498150,0.00084,68085.0,68084.0,1.171839]
[1722070499298,0.00084,68085.0,68084.0,0.878085]
[1722070499501,0.00084,68085.0,68084.0,0.440631]
[1722070499700,0.00084,68085.0,68079.0,0.093974]
[1722070499901,0.00084,68085.0,68083.0,0.146878]
[1722070500104,0.0230502,68084.0,68083.0,0.146878]
[1722070500311,0.0230502,68084.0,68083.0,0.00142569]
[1722070500510,0.1598502,68084.0,68081.0,0.293766]
[1722070500710,0.1598502,68084.0,68083.0,0.146879]
[1722070501243,0.0982502,68084.0,68083.0,0.440638]
[1722070501455,0.0752,68084.0,68083.0,0.440638]
[1722070502003,0.0752,68084.0,68083.0,0.146879]
[1722070502210,0.0752,68084.0,68082.0,0.14830569]
[1722070502428,0.0752,68084.0,68082.0,0.00142569]
[1722070502630,0.0752,68084.0,68083.0,0.146879]
[1722070503341,0.0752,68084.0,68083.0,0.151879]
[1722070503941,0.0752,68084.0,68083.0,0.005]
[1722070504408,0.0752,68084.0,68083.0,0.009]
[1722070504541,0.09825076,68084.0,68083.0,0.155879]
[1722070505001,0.0752,68084.0,68083.0,0.155879]
[1722070506173,0.0752,68084.0,68083.0,0.009]
[1722070507098,0.0752,68084.0,68082.0,0.146881]
[1722070507541,0.00084,68085.0,68083.0,0.005]
[1722070507743,0.00084,68085.0,68084.0,0.146877]
[1722070508151,0.00084,68085.0,68083.0,0.149878]
[1722070508320,0.02389064,68085.0,68083.0,0.146878]
[1722070508925,0.02389064,68085.0,68084.0,0.292577]
[1722070509126,0.02389064,68085.0,68084.0,0.586331]
[1722070509705,0.00084,68085.0,68084.0,0.586331]
[1722070510535,0.00084,68085.0,68084.0,0.588331]
[1722070510917,0.00084,68085.0,68084.0,0.882085]
[1722070511126,0.00084,68085.0,68084.0,0.883085]
[1722070512151,0.00084,68085.0,68084.0,1.176839]
[1722070515403,0.00084,68085.0,68084.0,0.883085]
[1722070517356,0.02389005,68085.0,68084.0,0.883085]
[1722070518259,0.02254702,68085.0,68084.0,0.883085]
[1722070518873,0.06584956,68087.0,68086.0,0.440619]
[1722070519229,0.06584956,68088.0,68087.0,0.440611]
[1722070519435,0.06584956,68089.0,68088.0,0.440605]
[1722070520295,0.06584956,68089.0,68088.0,0.439605]
[1722070520417,0.06584956,68089.0,68084.0,0.1457]
[1722070520618,0.06684956,68087.0,68086.0,0.146873]
[1722070521074,0.06684956,68087.0,68085.0,0.146874]
[1722070521296,0.06584956,68087.0,68085.0,0.146874]
[1722070521497,0.06584956,68087.0,68086.0,0.146873]
[1722070521856,0.06584829,68087.0,68086.0,0.146873]
[1722070522177,0.06584829,68087.0,68085.0,0.146874]
[1722070522376,0.0762,68088.0,68085.0,0.147874]
[1722070522592,0.06584771,68087.0,68085.0,0.147874]
[1722070522767,0.06584771,68087.0,68085.0,0.001]
[1722070523195,0.21271871,68087.0,68085.0,0.001]
[1722070523796,0.21271871,68087.0,68086.0,0.002]
[1722070523998,0.21271871,68087.0,68086.0,0.001]
[1722070524590,0.21271871,68087.0,68083.0,0.146878]
[1722070524992,0.21271871,68087.0,68086.0,0.002]
[1722070525419,0.21271874,68087.0,68086.0,0.002]
[1722070525989,0.06584774,68087.0,68086.0,0.959465]
[1722070526213,0.06584774,68088.0,68087.0,0.440611]
[1722070526413,0.06584774,68088.0,68087.0,0.734352]
[1722070526718,0.06584774,68089.0,68088.0,0.146868]
[1722070526962,0.06584774,68089.0,68088.0,0.819042]
[1722070527643,0.06584774,68091.0,68090.0,0.146864]
[1722070527852,0.06584774,68092.0,68091.0,0.146862]
[1722070528051,0.02388232,68093.0,68092.0,0.23156]
[1722070528227,0.02388232,68093.0,68092.0,0.52528]
[1722070528424,0.02388232,68093.0,68092.0,0.52428]
[1722070529461,0.02788232,68093.0,68092.0,0.52428]
[1722070529869,0.02788232,68093.0,68092.0,0.52028]
[1722070530472,0.03288232,68093.0,68092.0,0.5065382]
[1722070532386,0.02888232,68093.0,68092.0,0.5065382]
[1722070532610,0.02388232,68093.0,68092.0,0.5065382]
[1722070532855,0.02388232,68093.0,68092.0,0.5085382]
[1722070533045,0.02388232,68093.0,68092.0,0.5115382]
[1722070534212,0.02388232,68093.0,68092.0,0.8822582]
[1722070534407,0.00084,68093.0,68092.0,0.5885382]
[1722070534630,0.00084,68093.0,68092.0,0.8822582]
[1722070536259,0.00084,68093.0,68092.0,1.2373782]
[1722070536452,0.00084,68093.0,68092.0,1.40942157]
[1722070538894,0.00084,68093.0,68092.0,1.2873782]
[1722070539148,0.00084,68093.0,68092.0,1.40941507]
[1722070539476,0.00084,68093.0,68092.0,1.65941507]
[1722070539680,0.00084,68093.0,68092.0,1.40941507]
[1722070539902,0.00084,68093.0,68092.0,1.41833983]
[1722070541056,0.00084,68093.0,68092.0,1.36833983]
[1722070541238,0.00084,68093.0,68092.0,1.06569507]
[1722070541629,0.00084,68093.0,68092.0,0.7205582]
[1722070541845,0.00084,68093.0,68092.0,0.4268382]
[1722070542375,0.00084,68093.0,68092.0,0.005]
[1722070542593,0.00084,68093.0,68092.0,0.44558]
[1722070543645,0.00084,68093.0,68092.0,0.7393]
[1722070545105,0.00084,68093.0,68092.0,0.740224]
[1722070550674,0.00084,68093.0,68092.0,1.033944]
[1722070557417,0.00084,68093.0,68092.0,1.179344]
[1722070559017,0.00084,68093.0,68092.0,1.229344]
[1722070559221,0.00084,68093.0,68092.0,1.179344]
[1722070560838,0.00084,68093.0,68092.0,1.229344]
[1722070561262,0.00084,68093.0,68092.0,1.60139054]
[1722070561454,0.00084,68093.0,68092.0,1.89511054]
[1722070561948,0.00084,68093.0,68092.0,1.8951046]
[1722070562437,0.00084,68093.0,68092.0,1.9181046]
[1722070562637,0.00084,68093.0,68092.0,2.06836417]
[1722070563825,0.00084,68093.0,68092.0,1.81836417]
[1722070564061,0.00084,68093.0,68092.0,1.4590846]
[1722070564267,0.00084,68093.0,68092.0,1.4360846]
[1722070565179,0.00084,68093.0,68092.0,1.314044]
[1722070565408,0.00084,68093.0,68092.0,1.43607973]
[1722070565557,0.00084,68093.0,68092.0,1.30137973]
[1722070565758,0.00084,68093.0,68092.0,1.38607973]
[1722070566079,0.00084,68093.0,68092.0,1.43607973]
[1722070567201,0.00084,68093.0,68092.0,1.68607973]
[1722070568561,0.00084,68093.0,68092.0,1.564044]
[1722070568738,0.00084,68093.0,68092.0,1.68607941]
[1722070570819,0.00084,68093.0,68092.0,1.68607973]
[1722070572523,0.00084,68093.0,68092.0,2.1300593]
[1722070572673,0.00084,68093.0,68092.0,1.8593393]
[1722070572831,0.00084,68093.0,68092.0,2.1530593]
[1722070573234,0.00084,68093.0,68092.0,2.1550593]
[1722070574262,0.00084,68093.0,68092.0,2.18449612]
[1722070574463,0.00084,68093.0,68092.0,2.39555423]
[1722070574663,0.00084,68093.0,68092.0,2.35150856]
[1722070575282,0.00084,68093.0,68092.0,2.05947357]
[1722070575478,0.00084,68093.0,68092.0,2.34890699]
[1722070575685,0.00084,68093.0,68092.0,2.39094473]
[1722070575885,0.00184,68093.0,68092.0,2.41894473]
[1722070576284,0.00184,68093.0,68092.0,2.71266473]
[1722070576508,0.00184,68093.0,68092.0,2.66862699]
[1722070577565,0.00184,68093.0,68092.0,2.71265054]
[1722070577773,0.00184,68093.0,68092.0,2.66862699]
[1722070577984,0.00184,68093.0,68092.0,2.37490699]
[1722070578503,0.00184,68093.0,68092.0,2.71264598]
[1722070578752,0.00184,68093.0,68092.0,2.67044578]
[1722070579474,0.00184,68093.0,68092.0,2.71446074]
[1722070579883,0.00184,68093.0,68092.0,2.42074074]
[1722070580103,0.00184,68093.0,68092.0,2.20748824]
[1722070580313,0.00184,68093.0,68092.0,2.20548824]
[1722070581350,0.00184,68093.0,68092.0,1.95548824]
[1722070581773,0.00184,68093.0,68092.0,2.20548824]
[1722070582083,0.00184,68093.0,68092.0,2.20549593]
[1722070582293,0.00184,68093.0,68092.0,1.95549593]
[1722070582701,0.00184,68093.0,68092.0,1.95549602]
[1722070583104,0.00184,68093.0,68092.0,2.20549602]
[1722070585679,0.00184,68093.0,68092.0,2.20549601]
[1722070586046,0.00184,68093.0,68092.0,2.20749601]
[1722070590910,0.00184,68093.0,68092.0,1.95549601]
[1722070591114,0.00184,68093.0,68092.0,2.20749601]
[1722070592563,0.00184,68093.0,68092.0,2.20749599]
[1722070599428,0.00184,68093.0,68092.0,2.20749597]
[1722070601475,0.00184,68093.0,68092.0,2.37689774]
[1722070602795,0.00184,68093.0,68092.0,2.08547357]
[1722070603020,0.00184,68093.0,68092.0,2.3768429]
[1722070606152,0.00184,68093.0,68092.0,2.08547357]
[1722070606363,0.00184,68093.0,68092.0,2.37688472]
[1722070606689,0.00184,68093.0,68092.0,2.37488472]
[1722070606893,0.00184,68093.0,68092.0,2.37688472]
[1722070607096,0.00184,68093.0,68092.0,2.37488472]
[1722070608435,0.00184,68093.0,68092.0,2.37688472]
[1722070609458,0.00184,68093.0,68092.0,2.42093621]
[1722070609697,0.00184,68093.0,68092.0,2.12952506]
[1722070609898,0.00184,68093.0,68092.0,2.42105235]
[1722070610231,0.00184,68093.0,68092.0,2.42106493]
[1722070611107,0.00184,68093.0,68092.0,2.19096493]
[1722070611311,0.00184,68093.0,68092.0,1.94007357]
[1722070611511,0.00184,68093.0,68092.0,2.27568567]
[1722070612130,0.00184,68093.0,68092.0,2.27368567]
[1722070613113,0.00184,68093.0,68092.0,2.22961906]
[1722070613355,0.00184,68093.0,68092.0,2.27369188]
[1722070614542,0.00184,68093.0,68092.0,2.22961906]
[1722070616678,0.00184,68093.0,68092.0,2.2977543]
[1722070617457,0.00184,68093.0,68092.0,2.62358934]
[1722070618423,0.00184,68093.0,68092.0,2.5574541]
[1722070618827,0.00184,68093.0,68092.0,2.62361117]
[1722070619071,0.00184,68093.0,68092.0,2.62161117]
[1722070619444,0.00184,68093.0,68092.0,2.32789117]
[1722070619997,0.00184,68093.0,68092.0,2.33015883]
[1722070622423,0.00184,68093.0,68092.0,1.64435357]
[1722070622617,0.00184,68093.0,68092.0,2.33012953]
[1722070624406,0.00184,68093.0,68092.0,2.26395786]
[1722070625989,0.00184,68093.0,68092.0,2.26386462]
[1722070629433,0.00184,68093.0,68092.0,1.64435357]
[1722070629635,0.00184,68093.0,68092.0,2.26384789]
[1722070631169,0.00176,68093.0,68092.0,2.26384789]
[1722070631599,0.00176,68093.0,68092.0,2.55756789]
[1722070632939,0.00176,68093.0,68092.0,2.55745428]
[1722070636268,0.00176,68093.0,68092.0,1.93807357]
[1722070636446,0.00176,68093.0,68092.0,2.55741529]
[1722070638739,0.00176,68093.0,68092.0,2.63471529]
[1722070639715,0.00176,68093.0,68092.0,2.63645621]
[1722070639842,0.00176,68093.0,68092.0,2.63645624]
[1722070640243,0.00176,68093.0,68092.0,2.63845624]
[1722070640447,0.00176,68093.0,68092.0,2.38645624]
[1722070640644,0.00176,68093.0,68092.0,2.63845624]
[1722070640851,0.00176,68093.0,68092.0,2.69935624]
[1722070643450,0.00176,68093.0,68092.0,2.44735624]
[1722070643651,0.00176,68093.0,68092.0,2.55915624]
[1722070643889,0.00176,68093.0,68092.0,2.01391374]
[1722070646622,0.00176,68093.0,68092.0,1.98217846]
[1722070647478,0.00176,68093.0,68092.0,1.8601541]
[1722070647864,0.00176,68093.0,68092.0,1.68807357]
[1722070655870,0.00176,68093.0,68092.0,2.01391382]
[1722070656810,0.00176,68093.0,68092.0,2.26391382]
[1722070657568,0.00176,68093.0,68092.0,2.01391382]
[1722070658446,0.00176,68093.0,68092.0,2.33904361]
[1722070659249,0.00176,68093.0,68092.0,2.63522772]
[1722070660590,0.00176,68093.0,68092.0,2.34104361]
[1722070660722,0.00176,68093.0,68092.0,2.63492974]
[1722070663530,0.00176,68093.0,68092.0,2.77482974]
[1722070664174,0.00176,68093.0,68092.0,2.7747323]
[1722070664369,0.00176,68093.0,68092.0,3.0684523]
[1722070664574,0.00176,68093.0,68092.0,2.48091796]
[1722070664774,0.00176,68093.0,68092.0,2.77507733]
[1722070664990,0.00084,68100.0,68099.0,1.795955]
[1722070665192,0.00084,68100.0,68099.0,2.39125244]
[1722070665367,0.00084,68100.0,68099.0,2.17592934]
[1722070665788,0.00084,68100.0,68099.0,2.17592598]
[1722070666163,0.00084,68100.0,68099.0,2.48161598]
[1722070666374,0.00084,68100.0,68099.0,2.71952351]
[1722070666574,0.00084,68100.0,68099.0,2.71952317]
[1722070666878,0.00084,68100.0,68099.0,3.04532315]
[1722070667435,0.00084,68100.0,68099.0,3.05932315]
[1722070667686,0.00084,68100.0,68099.0,2.66733683]
[1722070668483,0.00084,68100.0,68099.0,2.4956136]
[1722070669538,0.00084,68100.0,68099.0,2.53969347]
[1722070670926,0.00084,68100.0,68099.0,2.37360457]
[1722070671135,0.00084,68100.0,68099.0,2.53968909]
[1722070672444,0.00084,68100.0,68099.0,2.54844483]
[1722070674380,0.00084,68100.0,68099.0,2.67616439]
[1722070674844,0.00084,68100.0,68099.0,2.67616084]
[1722070675385,0.00084,68100.0,68099.0,2.54842396]
[1722070677706,0.00084,68100.0,68099.0,2.46372396]
[1722070677914,0.00084,68100.0,68099.0,2.54841797]
[1722070680589,0.00084,68100.0,68099.0,2.10982797]
[1722070680748,0.00084,68100.0,68099.0,1.94377031]
[1722070680930,0.00084,68100.0,68099.0,2.10982351]
[1722070681547,0.00084,68100.0,68099.0,2.06577626]
[1722070683230,0.00084,68100.0,68099.0,2.06777626]
[1722070683799,0.00084,68100.0,68099.0,2.06777638]
[1722070684051,0.00084,68100.0,68099.0,2.06577638]
[1722070687412,0.00084,68100.0,68099.0,2.06577904]
[1722070688833,0.00084,68100.0,68099.0,2.06777904]
[1722070689638,0.00084,68100.0,68099.0,2.06577904]
[1722070690907,0.00084,68100.0,68099.0,2.06578233]
[1722070693083,0.00084,68100.0,68099.0,2.06778233]
[1722070694462,0.00084,68100.0,68099.0,2.23986565]
[1722070694835,0.00084,68100.0,68099.0,2.38166565]
[1722070695378,0.00084,68100.0,68099.0,2.42571799]
[1722070695602,0.00084,68100.0,68099.0,2.71940799]
[1722070695834,0.00084,68100.0,68099.0,2.39971799]
[1722070696046,0.00084,68100.0,68099.0,2.41071799]
[1722070696336,0.00084,68100.0,68099.0,2.71840799]
[1722070696539,0.00084,68100.0,68099.0,2.41371799]
[1722070696920,0.00084,68100.0,68099.0,2.70740799]
[1722070697538,0.02303789,68113.0,68112.0,1.794603]
[1722070697687,0.00084,68120.0,68112.0,1.794603]
[1722070697688,0.00084,68120.0,68115.0,0.769881]
[1722070697889,0.00084,68120.0,68115.0,1.71407691]
[1722070698119,0.00084,68120.0,68115.0,2.49822394]
[1722070698796,0.00084,68120.0,68115.0,2.51222394]
[1722070699405,0.00084,68120.0,68115.0,2.52622394]
[1722070699607,0.00084,68120.0,68115.0,2.57022843]
[1722070700656,0.00084,68120.0,68115.0,2.52622394]
[1722070700896,0.00084,68120.0,68115.0,2.23232457]
[1722070701065,0.00084,68120.0,68115.0,2.52712924]
[1722070702460,0.00084,68120.0,68115.0,2.35429614]
[1722070702656,0.00084,68120.0,68115.0,2.36319282]
[1722070704401,0.00084,68120.0,68115.0,2.36319266]
[1722070705690,0.00084,68120.0,68115.0,2.11119266]
[1722070705847,0.00084,68120.0,68115.0,2.36319266]
[1722070707703,0.00084,68120.0,68115.0,2.24122125]
[1722070707900,0.00084,68120.0,68115.0,2.36319224]
[1722070709454,0.00084,68120.0,68115.0,2.36319223]
[1722070710994,0.0818,68118.0,68115.0,1.73287123]
[1722070711248,0.0635,68117.0,68115.0,2.06757123]
[1722070711594,0.0635,68117.0,68115.0,1.98287123]
[1722070711800,0.0635,68117.0,68115.0,1.67260025]
[1722070711998,0.0635,68117.0,68115.0,1.79458322]